[Event "Late-Titled-Tuesday-Blitz-May-07-2024"]
[Site "Chess.com"]
[Date "2024.05.07"]
[Round "9"]
[White "Vincefm"]
[Black "ChessSwole"]
[Result "0-1"]
[WhiteElo "2494"]
[BlackElo "2620"]
[TimeControl "180+1"]
[EndTime "15:46:08 PDT"]
[Termination "ChessSwole won on time"]

1. e4 {[%clk 0:03:00.9]} 1... c5 {[%clk 0:02:59.6]} 2. Nf3 {[%clk 0:03:00.4]}
2... e6 {[%clk 0:03:00.1]} 3. d4 {[%clk 0:02:59.5]} 3... cxd4 {[%clk 0:03:01]}
4. Nxd4 {[%clk 0:03:00]} 4... Nc6 {[%clk 0:03:00.5]} 5. Nc3 {[%clk 0:02:58.2]}
5... Qc7 {[%clk 0:03:00.6]} 6. g3 {[%clk 0:02:58.1]} 6... a6 {[%clk 0:02:58.9]}
7. Bg2 {[%clk 0:02:58]} 7... Nf6 {[%clk 0:02:59.4]} 8. Nb3 {[%clk 0:02:58.2]}
8... b5 {[%clk 0:02:39]} 9. O-O {[%clk 0:02:57.2]} 9... Bb7 {[%clk 0:02:38.3]}
10. Be3 {[%clk 0:02:49.2]} 10... Ne5 {[%clk 0:02:33.1]} 11. Qe2 {[%clk
0:02:19.2]} 11... d6 {[%clk 0:02:27.2]} 12. f4 {[%clk 0:02:11.6]} 12... Nc4
{[%clk 0:02:27.3]} 13. Bc1 {[%clk 0:02:11.8]} 13... Be7 {[%clk 0:02:24.5]} 14.
Kh1 {[%clk 0:02:04.1]} 14... h5 {[%clk 0:02:23.4]} 15. h3 {[%clk 0:02:02.2]}
15... b4 {[%clk 0:02:16]} 16. Nd1 {[%clk 0:01:54.6]} 16... a5 {[%clk 0:02:13.6]}
17. c3 {[%clk 0:01:04.1]} 17... Rc8 {[%clk 0:02:06.3]} 18. cxb4 {[%clk
0:01:01.9]} 18... axb4 {[%clk 0:02:06.4]} 19. Ne3 {[%clk 0:01:01.6]} 19... Nxe4
{[%clk 0:02:03.2]} 20. Kh2 {[%clk 0:00:58.3]} 20... h4 {[%clk 0:01:57.9]} 21.
Nxc4 {[%clk 0:00:41.8]} 21... hxg3+ {[%clk 0:01:45.1]} 22. Kg1 {[%clk
0:00:37.2]} 22... Nf2 {[%clk 0:01:11.5]} 23. Ne3 {[%clk 0:00:02.9]} 23... Nxh3+
{[%clk 0:01:01.9]} 24. Bxh3 {[%clk 0:00:03.8]} 24... Rxh3 {[%clk 0:01:01.7]} 25.
Ng2 {[%clk 0:00:03.3]} 25... Rh2 {[%clk 0:00:57.3]} 26. Rf3 {[%clk 0:00:03.7]}
26... Bh4 {[%clk 0:00:48.2]} 27. Be3 {[%clk 0:00:03.4]} 27... Qc6 {[%clk
0:00:45.6]} 28. Raf1 {[%clk 0:00:02.7]} 28... Ba6 {[%clk 0:00:40.5]} 29. Qe1
{[%clk 0:00:02.3]} 29... Bxf1 {[%clk 0:00:40.4]} 30. Qxf1 {[%clk 0:00:03]} 30...
Qd5 {[%clk 0:00:38.6]} 31. Nd4 {[%clk 0:00:03]} 31... Kf8 {[%clk 0:00:33.9]} 32.
Ne2 {[%clk 0:00:02.4]} 32... Rc2 {[%clk 0:00:31.9]} 0-1

[Event "Late-Titled-Tuesday-Blitz-May-07-2024"]
[Site "Chess.com"]
[Date "2024.05.07"]
[Round "9"]
[White "Alexei_Gubajdullin"]
[Black "Tibmat"]
[Result "1-0"]
[WhiteElo "2563"]
[BlackElo "2667"]
[TimeControl "180+1"]
[EndTime "15:46:09 PDT"]
[Termination "Alexei_Gubajdullin won by checkmate"]

1. Nf3 {[%clk 0:03:00.9]} 1... Nf6 {[%clk 0:02:53.1]} 2. g3 {[%clk 0:02:59.5]}
2... d5 {[%clk 0:02:49.2]} 3. Bg2 {[%clk 0:02:59]} 3... e6 {[%clk 0:02:45.6]} 4.
O-O {[%clk 0:02:59.9]} 4... c5 {[%clk 0:02:44.6]} 5. b3 {[%clk 0:02:59.8]} 5...
Nc6 {[%clk 0:02:42.4]} 6. e3 {[%clk 0:02:58.9]} 6... Bd6 {[%clk 0:02:40.9]} 7.
Bb2 {[%clk 0:02:53]} 7... O-O {[%clk 0:02:40.7]} 8. c4 {[%clk 0:02:40]} 8... b6
{[%clk 0:02:25.6]} 9. Nc3 {[%clk 0:02:37.9]} 9... dxc4 {[%clk 0:02:16.8]} 10.
bxc4 {[%clk 0:02:36.4]} 10... Bb7 {[%clk 0:02:14.9]} 11. Qe2 {[%clk 0:02:35.7]}
11... Rc8 {[%clk 0:02:07.1]} 12. d3 {[%clk 0:02:34.2]} 12... Ne5 {[%clk
0:01:56.3]} 13. Nxe5 {[%clk 0:02:29.6]} 13... Bxg2 {[%clk 0:01:57.2]} 14. Kxg2
{[%clk 0:02:21.8]} 14... Bxe5 {[%clk 0:01:57.2]} 15. f4 {[%clk 0:02:16.1]} 15...
Bd6 {[%clk 0:01:43.7]} 16. g4 {[%clk 0:02:14.7]} 16... Qc7 {[%clk 0:01:34.4]}
17. g5 {[%clk 0:02:13.7]} 17... Nd7 {[%clk 0:01:34.2]} 18. Ne4 {[%clk
0:02:12.1]} 18... Be7 {[%clk 0:01:33.4]} 19. Rf3 {[%clk 0:02:11]} 19... f5
{[%clk 0:01:27.2]} 20. gxf6 {[%clk 0:01:22.3]} 20... Nxf6 {[%clk 0:01:25.2]} 21.
Ng5 {[%clk 0:01:20.6]} 21... Qc6 {[%clk 0:01:21.8]} 22. e4 {[%clk 0:01:19.9]}
22... h6 {[%clk 0:01:09.2]} 23. Nh3 {[%clk 0:01:19.3]} 23... Nd7 {[%clk
0:01:06.1]} 24. Rg3 {[%clk 0:01:18.3]} 24... Bf6 {[%clk 0:01:06.4]} 25. Rg1
{[%clk 0:01:16.6]} 25... Rf7 {[%clk 0:00:57.1]} 26. Kh1 {[%clk 0:01:15.4]} 26...
b5 {[%clk 0:00:47.5]} 27. Qg2 {[%clk 0:01:11.3]} 27... Rc7 {[%clk 0:00:19.8]}
28. e5 {[%clk 0:01:08.2]} 28... Qxg2+ {[%clk 0:00:15.6]} 29. R1xg2 {[%clk
0:01:07.8]} 29... Be7 {[%clk 0:00:16]} 30. cxb5 {[%clk 0:01:07.7]} 30... Rb7
{[%clk 0:00:16.5]} 31. a4 {[%clk 0:01:07.6]} 31... Nb6 {[%clk 0:00:16.3]} 32. f5
{[%clk 0:01:05.9]} 32... Nxa4 {[%clk 0:00:13.3]} 33. Bc1 {[%clk 0:01:02.5]}
33... exf5 {[%clk 0:00:11]} 34. e6 {[%clk 0:01:02.3]} 34... Rf8 {[%clk
0:00:09.5]} 35. Rxg7+ {[%clk 0:01:01.8]} 35... Kh8 {[%clk 0:00:09.5]} 36. R7g6
{[%clk 0:01:00.6]} 36... Rf6 {[%clk 0:00:06]} 37. Rg8+ {[%clk 0:00:59.6]} 37...
Kh7 {[%clk 0:00:04.8]} 38. R2g7# {[%clk 0:00:57.7]} 1-0

[Event "Late-Titled-Tuesday-Blitz-May-07-2024"]
[Site "Chess.com"]
[Date "2024.05.07"]
[Round "9"]
[White "BabageldiAnnaberdiyev"]
[Black "maracayo"]
[Result "1-0"]
[WhiteElo "2568"]
[BlackElo "2385"]
[TimeControl "180+1"]
[EndTime "15:46:16 PDT"]
[Termination "BabageldiAnnaberdiyev won by resignation"]

1. e4 {[%clk 0:03:00.9]} 1... d6 {[%clk 0:03:00.1]} 2. d4 {[%clk 0:02:59.9]}
2... Nf6 {[%clk 0:02:59.9]} 3. Nc3 {[%clk 0:02:59.8]} 3... c6 {[%clk 0:03:00]}
4. a4 {[%clk 0:02:59.2]} 4... Qa5 {[%clk 0:02:59.6]} 5. Bd2 {[%clk 0:02:58.6]}
5... e5 {[%clk 0:02:58.9]} 6. Nf3 {[%clk 0:02:57.7]} 6... Nbd7 {[%clk
0:02:45.8]} 7. Bd3 {[%clk 0:02:47.4]} 7... Qc7 {[%clk 0:02:43.6]} 8. O-O {[%clk
0:02:45.9]} 8... Be7 {[%clk 0:02:43.2]} 9. Bc4 {[%clk 0:02:41.1]} 9... O-O
{[%clk 0:02:38.6]} 10. Bg5 {[%clk 0:02:41.4]} 10... Re8 {[%clk 0:02:35.1]} 11.
Re1 {[%clk 0:02:40]} 11... b6 {[%clk 0:02:28.4]} 12. d5 {[%clk 0:02:34.1]} 12...
Bb7 {[%clk 0:02:26.6]} 13. dxc6 {[%clk 0:02:28.5]} 13... Bxc6 {[%clk 0:02:25.9]}
14. Qe2 {[%clk 0:02:25]} 14... Rac8 {[%clk 0:02:03.4]} 15. Bb5 {[%clk
0:02:16.2]} 15... h6 {[%clk 0:01:49.3]} 16. Bxf6 {[%clk 0:02:12.9]} 16... Nxf6
{[%clk 0:01:48.1]} 17. Red1 {[%clk 0:02:12.1]} 17... Bf8 {[%clk 0:01:25.2]} 18.
Nd2 {[%clk 0:02:09.1]} 18... Red8 {[%clk 0:01:16.7]} 19. Nf1 {[%clk 0:01:56.2]}
19... Bb7 {[%clk 0:01:12.1]} 20. Ba6 {[%clk 0:01:36]} 20... Bxa6 {[%clk
0:00:59.7]} 21. Qxa6 {[%clk 0:01:36.9]} 21... Qc4 {[%clk 0:00:56.8]} 22. Qxc4
{[%clk 0:01:33.6]} 22... Rxc4 {[%clk 0:00:55.5]} 23. Ne3 {[%clk 0:01:34]} 23...
Rxc3 {[%clk 0:00:51.5]} 24. bxc3 {[%clk 0:01:33.2]} 24... Nxe4 {[%clk
0:00:52.1]} 25. Nd5 {[%clk 0:01:31.4]} 25... Rc8 {[%clk 0:00:47.8]} 26. a5
{[%clk 0:01:29.6]} 26... b5 {[%clk 0:00:34.2]} 27. Ra3 {[%clk 0:01:20.8]} 27...
f5 {[%clk 0:00:30.2]} 28. f3 {[%clk 0:01:20.7]} 28... Nc5 {[%clk 0:00:29]} 29.
a6 {[%clk 0:01:16]} 29... Kf7 {[%clk 0:00:27.8]} 30. Rb1 {[%clk 0:01:14.9]}
30... Ke6 {[%clk 0:00:27]} 31. Ne3 {[%clk 0:01:10.7]} 31... f4 {[%clk
0:00:19.6]} 32. Nd1 {[%clk 0:01:08.5]} 32... Rb8 {[%clk 0:00:18.1]} 33. Ra5
{[%clk 0:01:06.9]} 33... Rb6 {[%clk 0:00:14.9]} 34. Rbxb5 {[%clk 0:01:04.3]}
34... Rxa6 {[%clk 0:00:15]} 35. Rxc5 {[%clk 0:01:00.1]} 35... Rb6 {[%clk
0:00:12.1]} 36. Rcb5 {[%clk 0:00:58.6]} 36... Rc6 {[%clk 0:00:12.7]} 37. Rxa7
{[%clk 0:00:57.6]} 37... d5 {[%clk 0:00:13.1]} 38. Rab7 {[%clk 0:00:55.7]} 38...
Bc5+ {[%clk 0:00:13]} 39. Kf1 {[%clk 0:00:56]} 39... e4 {[%clk 0:00:13.5]} 40.
Ke2 {[%clk 0:00:50.2]} 40... Ke5 {[%clk 0:00:11.9]} 41. Rxg7 {[%clk 0:00:47.4]}
41... Kd6 {[%clk 0:00:09.1]} 42. Rg6+ {[%clk 0:00:46.2]} 1-0

[Event "Late-Titled-Tuesday-Blitz-May-07-2024"]
[Site "Chess.com"]
[Date "2024.05.07"]
[Round "9"]
[White "Gareth-Bale11"]
[Black "Adar_07"]
[Result "1-0"]
[WhiteElo "2896"]
[BlackElo "2737"]
[TimeControl "180+1"]
[EndTime "15:46:29 PDT"]
[Termination "Gareth-Bale11 won by checkmate"]

1. e4 {[%clk 0:03:00.9]} 1... c6 {[%clk 0:03:00]} 2. d4 {[%clk 0:02:56.3]} 2...
d5 {[%clk 0:03:00.9]} 3. exd5 {[%clk 0:02:56.4]} 3... cxd5 {[%clk 0:03:01.8]} 4.
Bd3 {[%clk 0:02:56.9]} 4... Nf6 {[%clk 0:03:02.3]} 5. h3 {[%clk 0:02:53.7]} 5...
Nc6 {[%clk 0:03:01.8]} 6. Nf3 {[%clk 0:02:54.3]} 6... g6 {[%clk 0:02:59.9]} 7.
c3 {[%clk 0:02:53.1]} 7... Bf5 {[%clk 0:03:00]} 8. Ne5 {[%clk 0:02:50.9]} 8...
Bxd3 {[%clk 0:02:54.9]} 9. Nxd3 {[%clk 0:02:50.4]} 9... Bg7 {[%clk 0:02:53]} 10.
O-O {[%clk 0:02:50.9]} 10... O-O {[%clk 0:02:52.8]} 11. Re1 {[%clk 0:02:51.4]}
11... b5 {[%clk 0:02:50.4]} 12. a4 {[%clk 0:02:47.7]} 12... a6 {[%clk
0:02:49.7]} 13. Bf4 {[%clk 0:02:47.1]} 13... e6 {[%clk 0:02:46.6]} 14. Nd2
{[%clk 0:02:45.8]} 14... Qb6 {[%clk 0:02:44.2]} 15. axb5 {[%clk 0:02:38.9]}
15... axb5 {[%clk 0:02:45.1]} 16. b4 {[%clk 0:02:36.2]} 16... Nh5 {[%clk
0:02:31.6]} 17. Bh2 {[%clk 0:02:16.9]} 17... Bh6 {[%clk 0:02:03.2]} 18. Nb3
{[%clk 0:02:13.4]} 18... Ng7 {[%clk 0:01:53.8]} 19. Nbc5 {[%clk 0:02:11.3]}
19... Rfc8 {[%clk 0:01:51.3]} 20. Nd7 {[%clk 0:02:02.5]} 20... Qd8 {[%clk
0:01:50.2]} 21. N3c5 {[%clk 0:02:02.7]} 21... Nf5 {[%clk 0:01:46.1]} 22. Qf3
{[%clk 0:02:01.9]} 22... Bg7 {[%clk 0:01:41.1]} 23. Qd3 {[%clk 0:01:50.4]} 23...
Rxa1 {[%clk 0:01:35.1]} 24. Rxa1 {[%clk 0:01:47.7]} 24... Ra8 {[%clk 0:01:35.7]}
25. Rxa8 {[%clk 0:01:22.4]} 25... Qxa8 {[%clk 0:01:36.6]} 26. Bf4 {[%clk
0:01:22.3]} 26... Na7 {[%clk 0:00:37.1]} 27. Qf1 {[%clk 0:01:10.7]} 27... h6
{[%clk 0:00:33.5]} 28. Qa1 {[%clk 0:01:08]} 28... g5 {[%clk 0:00:24.6]} 29. Bb8
{[%clk 0:01:05.6]} 29... e5 {[%clk 0:00:15]} 30. Bxe5 {[%clk 0:00:39.2]} 30...
Bxe5 {[%clk 0:00:13]} 31. dxe5 {[%clk 0:00:40.1]} 31... d4 {[%clk 0:00:12.6]}
32. cxd4 {[%clk 0:00:41]} 32... Nh4 {[%clk 0:00:10.7]} 33. d5 {[%clk 0:00:38.4]}
33... Kg7 {[%clk 0:00:08]} 34. Nf6 {[%clk 0:00:35.4]} 34... Qb8 {[%clk
0:00:02.4]} 35. Nfd7 {[%clk 0:00:31.5]} 35... Qa8 {[%clk 0:00:01.5]} 36. e6+
{[%clk 0:00:32]} 36... Kg6 {[%clk 0:00:01.7]} 37. Qf6+ {[%clk 0:00:29.7]} 37...
Kh5 {[%clk 0:00:02.3]} 38. g4# {[%clk 0:00:28.7]} 1-0

[Event "Late-Titled-Tuesday-Blitz-May-07-2024"]
[Site "Chess.com"]
[Date "2024.05.07"]
[Round "9"]
[White "crescentmoon2411"]
[Black "TanitoluwaAps116"]
[Result "0-1"]
[WhiteElo "2868"]
[BlackElo "2756"]
[TimeControl "180+1"]
[EndTime "15:46:29 PDT"]
[Termination "TanitoluwaAps116 won on time"]

1. d4 {[%clk 0:02:57.9]} 1... Nf6 {[%clk 0:02:55.5]} 2. c4 {[%clk 0:02:58.3]}
2... e6 {[%clk 0:02:54.9]} 3. Nc3 {[%clk 0:02:58.6]} 3... Bb4 {[%clk 0:02:53.5]}
4. Bd2 {[%clk 0:02:58.9]} 4... O-O {[%clk 0:02:51.5]} 5. a3 {[%clk 0:02:58.7]}
5... Bxc3 {[%clk 0:02:49]} 6. Bxc3 {[%clk 0:02:59.6]} 6... d5 {[%clk 0:02:47.6]}
7. e3 {[%clk 0:02:57]} 7... b6 {[%clk 0:02:46.4]} 8. Nf3 {[%clk 0:02:56.6]} 8...
Ba6 {[%clk 0:02:43.9]} 9. b3 {[%clk 0:02:56.8]} 9... dxc4 {[%clk 0:02:41.8]} 10.
bxc4 {[%clk 0:02:57.2]} 10... Nbd7 {[%clk 0:02:38.9]} 11. Bd3 {[%clk 0:02:56.7]}
11... c5 {[%clk 0:02:38.8]} 12. d5 {[%clk 0:02:53.1]} 12... exd5 {[%clk
0:02:19.8]} 13. cxd5 {[%clk 0:02:54]} 13... Bb7 {[%clk 0:02:18.8]} 14. e4 {[%clk
0:02:52.2]} 14... Nxe4 {[%clk 0:02:14.1]} 15. Bxe4 {[%clk 0:02:52]} 15... Re8
{[%clk 0:02:13.5]} 16. O-O {[%clk 0:02:38.7]} 16... Rxe4 {[%clk 0:02:12.4]} 17.
Qd3 {[%clk 0:02:02.1]} 17... Qe7 {[%clk 0:02:00.6]} 18. Rfe1 {[%clk 0:01:59.4]}
18... Re8 {[%clk 0:01:57.8]} 19. h4 {[%clk 0:01:58.9]} 19... h6 {[%clk 0:01:52]}
20. Qb5 {[%clk 0:01:00.6]} 20... Qd6 {[%clk 0:01:17.8]} 21. Rxe4 {[%clk
0:00:43]} 21... Rxe4 {[%clk 0:01:18.7]} 22. Nd2 {[%clk 0:00:43.6]} 22... Rxh4
{[%clk 0:01:13.7]} 23. Nf1 {[%clk 0:00:30.3]} 23... Qxd5 {[%clk 0:00:58.4]} 24.
f3 {[%clk 0:00:23.6]} 24... Bc6 {[%clk 0:00:43]} 25. Qb2 {[%clk 0:00:22.5]}
25... Qg5 {[%clk 0:00:30.5]} 26. Qf2 {[%clk 0:00:16.8]} 26... Rc4 {[%clk
0:00:27.9]} 27. Bb2 {[%clk 0:00:11.3]} 27... Ne5 {[%clk 0:00:23.2]} 28. Bxe5
{[%clk 0:00:05.1]} 28... Qxe5 {[%clk 0:00:24.1]} 29. Re1 {[%clk 0:00:04.8]}
29... Qd4 {[%clk 0:00:19.8]} 30. Ne3 {[%clk 0:00:04.3]} 30... Rc3 {[%clk
0:00:18.3]} 31. Kh2 {[%clk 0:00:04.2]} 31... Qf4+ {[%clk 0:00:17.4]} 32. Kg1
{[%clk 0:00:03.9]} 32... Qd4 {[%clk 0:00:18.1]} 33. Kh2 {[%clk 0:00:04.1]} 33...
Rxa3 {[%clk 0:00:18.8]} 34. Qe2 {[%clk 0:00:00.5]} 34... Qe5+ {[%clk 0:00:18.9]}
0-1

[Event "Late-Titled-Tuesday-Blitz-May-07-2024"]
[Site "Chess.com"]
[Date "2024.05.07"]
[Round "9"]
[White "Licancabur"]
[Black "nindjaxx8"]
[Result "0-1"]
[WhiteElo "2487"]
[BlackElo "2631"]
[TimeControl "180+1"]
[EndTime "15:46:33 PDT"]
[Termination "nindjaxx8 won on time"]

1. d4 {[%clk 0:03:00.9]} 1... d5 {[%clk 0:02:55.3]} 2. Bg5 {[%clk 0:02:58.6]}
2... Nf6 {[%clk 0:02:54.5]} 3. e3 {[%clk 0:02:56.6]} 3... h6 {[%clk 0:02:48.9]}
4. Bh4 {[%clk 0:02:53.6]} 4... e6 {[%clk 0:02:47.3]} 5. Nd2 {[%clk 0:02:51.2]}
5... Be7 {[%clk 0:02:45.5]} 6. Bd3 {[%clk 0:02:50.6]} 6... O-O {[%clk
0:02:44.9]} 7. f4 {[%clk 0:02:50]} 7... b6 {[%clk 0:02:44.3]} 8. Ngf3 {[%clk
0:02:45.1]} 8... Bb7 {[%clk 0:02:43.7]} 9. c3 {[%clk 0:02:42.2]} 9... Ne4 {[%clk
0:02:40.2]} 10. Bxe7 {[%clk 0:02:41.6]} 10... Qxe7 {[%clk 0:02:39.3]} 11. O-O
{[%clk 0:02:29.1]} 11... Nd7 {[%clk 0:02:36.5]} 12. Ne5 {[%clk 0:02:24.6]} 12...
Nxe5 {[%clk 0:02:25.8]} 13. fxe5 {[%clk 0:02:23.7]} 13... f5 {[%clk 0:02:23]}
14. exf6 {[%clk 0:02:22.1]} 14... Rxf6 {[%clk 0:02:22.1]} 15. Bxe4 {[%clk
0:02:13.7]} 15... dxe4 {[%clk 0:02:20.3]} 16. Rxf6 {[%clk 0:02:11.9]} 16... Qxf6
{[%clk 0:02:20.3]} 17. Qg4 {[%clk 0:02:09.4]} 17... Qf5 {[%clk 0:01:58.6]} 18.
Qg3 {[%clk 0:01:46.5]} 18... Ba6 {[%clk 0:01:51.5]} 19. c4 {[%clk 0:01:44.9]}
19... Rf8 {[%clk 0:01:34]} 20. Rf1 {[%clk 0:01:40.3]} 20... Qa5 {[%clk 0:01:30]}
21. Rxf8+ {[%clk 0:01:38.8]} 21... Kxf8 {[%clk 0:01:29.2]} 22. Qf2+ {[%clk
0:01:23.6]} 22... Kg8 {[%clk 0:01:16.2]} 23. a3 {[%clk 0:01:08.5]} 23... Qa4
{[%clk 0:01:08.7]} 24. Qe2 {[%clk 0:00:29.2]} 24... Qc2 {[%clk 0:01:01.7]} 25.
b3 {[%clk 0:00:29]} 25... b5 {[%clk 0:00:29.1]} 26. cxb5 {[%clk 0:00:20.2]}
26... Bxb5 {[%clk 0:00:25.7]} 27. Qxb5 {[%clk 0:00:19.8]} 27... Qxd2 {[%clk
0:00:25.9]} 28. Qe8+ {[%clk 0:00:13.3]} 28... Kh7 {[%clk 0:00:25.8]} 29. h3
{[%clk 0:00:12]} 29... Qxe3+ {[%clk 0:00:25.4]} 30. Kh2 {[%clk 0:00:12.1]} 30...
Qf4+ {[%clk 0:00:18.7]} 31. Kh1 {[%clk 0:00:11.6]} 31... Qf5 {[%clk 0:00:14.5]}
32. Qd7 {[%clk 0:00:07.1]} 32... e3 {[%clk 0:00:14.2]} 0-1

[Event "Late-Titled-Tuesday-Blitz-May-07-2024"]
[Site "Chess.com"]
[Date "2024.05.07"]
[Round "9"]
[White "Smiechu"]
[Black "Goryachkina"]
[Result "1/2-1/2"]
[WhiteElo "2473"]
[BlackElo "2693"]
[TimeControl "180+1"]
[EndTime "15:46:37 PDT"]
[Termination "Game drawn by repetition"]

1. e4 {[%clk 0:02:54.8]} 1... c5 {[%clk 0:02:59]} 2. Nf3 {[%clk 0:02:54]} 2...
e6 {[%clk 0:02:59]} 3. d4 {[%clk 0:02:54.2]} 3... cxd4 {[%clk 0:02:58.7]} 4.
Nxd4 {[%clk 0:02:53]} 4... Nc6 {[%clk 0:02:58.6]} 5. Nc3 {[%clk 0:02:53.1]} 5...
Bc5 {[%clk 0:02:58.2]} 6. Nb3 {[%clk 0:02:47.3]} 6... Bb4 {[%clk 0:02:58.3]} 7.
Bd2 {[%clk 0:02:44.9]} 7... Nge7 {[%clk 0:02:57.1]} 8. Bd3 {[%clk 0:02:44.5]}
8... O-O {[%clk 0:02:56]} 9. O-O {[%clk 0:02:44.2]} 9... d6 {[%clk 0:02:52.7]}
10. a3 {[%clk 0:02:43.9]} 10... Bxc3 {[%clk 0:02:52.3]} 11. Bxc3 {[%clk
0:02:44.1]} 11... e5 {[%clk 0:02:51.9]} 12. f4 {[%clk 0:02:41.7]} 12... exf4
{[%clk 0:02:50.2]} 13. Rxf4 {[%clk 0:02:38.3]} 13... Ng6 {[%clk 0:02:47.9]} 14.
Rf1 {[%clk 0:02:31.8]} 14... Qb6+ {[%clk 0:02:35.2]} 15. Kh1 {[%clk 0:02:30.4]}
15... Be6 {[%clk 0:02:34.9]} 16. Be2 {[%clk 0:02:13.8]} 16... Rad8 {[%clk
0:02:18.6]} 17. Nd4 {[%clk 0:02:09.7]} 17... Nxd4 {[%clk 0:02:18.2]} 18. Bxd4
{[%clk 0:02:09.6]} 18... Qc7 {[%clk 0:02:14.2]} 19. c3 {[%clk 0:02:02.8]} 19...
b6 {[%clk 0:02:13.6]} 20. Bg4 {[%clk 0:01:57.1]} 20... Bxg4 {[%clk 0:01:56.8]}
21. Qxg4 {[%clk 0:01:56.6]} 21... Rfe8 {[%clk 0:01:56.9]} 22. Rae1 {[%clk
0:01:49.7]} 22... Re6 {[%clk 0:01:56.6]} 23. Rf5 {[%clk 0:01:44.8]} 23... Rde8
{[%clk 0:01:55.7]} 24. h4 {[%clk 0:01:33.5]} 24... Qc6 {[%clk 0:01:46.4]} 25. h5
{[%clk 0:01:13.9]} 25... Ne5 {[%clk 0:01:13.6]} 26. Bxe5 {[%clk 0:01:11.9]}
26... Rxe5 {[%clk 0:01:13.9]} 27. h6 {[%clk 0:00:50.5]} 27... g6 {[%clk
0:01:13.7]} 28. Ref1 {[%clk 0:00:43]} 28... Rxe4 {[%clk 0:01:00]} 29. Qg5 {[%clk
0:00:42.3]} 29... Qc4 {[%clk 0:00:41.4]} 30. Qf6 {[%clk 0:00:33.4]} 30... Rh4+
{[%clk 0:00:41.1]} 31. Kg1 {[%clk 0:00:32.8]} 31... Rxh6 {[%clk 0:00:41.2]} 32.
Qxf7+ {[%clk 0:00:19.4]} 32... Qxf7 {[%clk 0:00:41.2]} 33. Rxf7 {[%clk
0:00:20.1]} 33... a5 {[%clk 0:00:24.1]} 34. Rd7 {[%clk 0:00:19.9]} 34... Rh5
{[%clk 0:00:21.5]} 35. Rff7 {[%clk 0:00:17.2]} 35... Re1+ {[%clk 0:00:13.2]} 36.
Kf2 {[%clk 0:00:16.2]} 36... Rb1 {[%clk 0:00:13.3]} 37. Rg7+ {[%clk 0:00:15.6]}
37... Kf8 {[%clk 0:00:13.2]} 38. Rgf7+ {[%clk 0:00:15.8]} 38... Kg8 {[%clk
0:00:12.1]} 39. Rg7+ {[%clk 0:00:14.8]} 39... Kf8 {[%clk 0:00:12.5]} 40. Rgf7+
{[%clk 0:00:15.1]} 40... Kg8 {[%clk 0:00:12.9]} 1/2-1/2

[Event "Late-Titled-Tuesday-Blitz-May-07-2024"]
[Site "Chess.com"]
[Date "2024.05.07"]
[Round "9"]
[White "GothamChess"]
[Black "KaydenTroffChess"]
[Result "1-0"]
[WhiteElo "2736"]
[BlackElo "2870"]
[TimeControl "180+1"]
[EndTime "15:46:43 PDT"]
[Termination "GothamChess won by resignation"]

1. e4 {[%clk 0:03:00.9]} 1... c5 {[%clk 0:02:59.6]} 2. a3 {[%clk 0:03:00.2]}
2... g6 {[%clk 0:02:59.4]} 3. Nc3 {[%clk 0:03:00.3]} 3... Bg7 {[%clk 0:02:59.8]}
4. Bc4 {[%clk 0:03:00.7]} 4... e6 {[%clk 0:02:59.8]} 5. d3 {[%clk 0:03:01.2]}
5... Ne7 {[%clk 0:02:59.7]} 6. Ba2 {[%clk 0:03:01.7]} 6... O-O {[%clk
0:02:59.4]} 7. h4 {[%clk 0:03:02]} 7... d5 {[%clk 0:02:55.9]} 8. h5 {[%clk
0:03:02.2]} 8... Nbc6 {[%clk 0:02:51.1]} 9. hxg6 {[%clk 0:02:49.9]} 9... fxg6
{[%clk 0:02:22.3]} 10. Bg5 {[%clk 0:02:46.2]} 10... c4 {[%clk 0:02:09.9]} 11.
Nf3 {[%clk 0:02:33.9]} 11... Qa5 {[%clk 0:01:42.8]} 12. Qd2 {[%clk 0:02:25.1]}
12... d4 {[%clk 0:01:36]} 13. Ne2 {[%clk 0:02:18.2]} 13... c3 {[%clk 0:01:23.6]}
14. bxc3 {[%clk 0:02:12.5]} 14... dxc3 {[%clk 0:01:23.7]} 15. Qe3 {[%clk
0:02:08.2]} 15... Rf7 {[%clk 0:01:22]} 16. Bb3 {[%clk 0:01:57]} 16... Bd7 {[%clk
0:01:01.2]} 17. Nf4 {[%clk 0:01:45.3]} 17... Nd4 {[%clk 0:00:20.5]} 18. Nxd4
{[%clk 0:01:29.7]} 18... Qxg5 {[%clk 0:00:20.3]} 19. Ndxe6 {[%clk 0:01:24.3]}
19... Bxe6 {[%clk 0:00:17.3]} 20. Bxe6 {[%clk 0:01:24.9]} 20... Rf8 {[%clk
0:00:17.1]} 21. g3 {[%clk 0:01:09.5]} 21... Nc6 {[%clk 0:00:17]} 22. Nd5 {[%clk
0:00:53.9]} 22... Qe5 {[%clk 0:00:09.4]} 23. Bxf7+ {[%clk 0:00:50.6]} 23... Rxf7
{[%clk 0:00:10.3]} 24. f4 {[%clk 0:00:48.6]} 24... Qe6 {[%clk 0:00:10.3]} 25.
Rh2 {[%clk 0:00:30]} 25... Bd4 {[%clk 0:00:09.2]} 26. Qe2 {[%clk 0:00:23.5]}
26... Bc5 {[%clk 0:00:09.9]} 27. Qg2 {[%clk 0:00:19.5]} 27... Nd4 {[%clk
0:00:09.7]} 28. Qh3 {[%clk 0:00:17.6]} 28... Qa6 {[%clk 0:00:09.4]} 29. Qc8+
{[%clk 0:00:16.3]} 29... Bf8 {[%clk 0:00:09.9]} 30. Rf2 {[%clk 0:00:12.2]} 30...
Qa4 {[%clk 0:00:06.7]} 31. Qxc3 {[%clk 0:00:08.4]} 31... Bg7 {[%clk 0:00:07.1]}
32. e5 {[%clk 0:00:07.2]} 32... Qd7 {[%clk 0:00:06]} 33. Qxd4 {[%clk 0:00:07]}
33... Kh8 {[%clk 0:00:06.3]} 34. c4 {[%clk 0:00:06.3]} 34... Qh3 {[%clk
0:00:06.5]} 35. Qe4 {[%clk 0:00:05.9]} 35... Qxg3 {[%clk 0:00:06]} 36. Ke2
{[%clk 0:00:06.6]} 36... Rf8 {[%clk 0:00:05.9]} 37. Rh1 {[%clk 0:00:06.2]} 37...
h5 {[%clk 0:00:05.4]} 38. Rg2 {[%clk 0:00:05.2]} 38... Rxf4 {[%clk 0:00:04.6]}
39. Rxg3 {[%clk 0:00:05]} 1-0